[Event "*** Titled Tuesday Blitz"]
[Site "Chess.com"]
[Date "2020.10.20"]
[Round "10"]
[White "Gusarov91"]
[Black "Mazetovic"]
[Result "1/2-1/2"]
[WhiteElo "2604"]
[BlackElo "2734"]
[TimeControl "180+1"]
[EndTime "12:00:08 PDT"]
[Termination "Game drawn by stalemate"]

1. d4 {[%clk 0:03:00.9]} 1... Nf6 {[%clk 0:02:59.6]} 2. Nf3 {[%clk 0:03:01]}
2... g6 {[%clk 0:03:00]} 3. Bg5 {[%clk 0:03:01]} 3... Bg7 {[%clk 0:03:00.1]} 4.
Nbd2 {[%clk 0:03:01.5]} 4... d5 {[%clk 0:03:00.1]} 5. c3 {[%clk 0:03:02]} 5...
O-O {[%clk 0:02:56.3]} 6. e3 {[%clk 0:02:59.9]} 6... b6 {[%clk 0:02:56.3]} 7.
Bd3 {[%clk 0:02:57.6]} 7... Bb7 {[%clk 0:02:56.6]} 8. Bxf6 {[%clk 0:02:57.8]}
8... Bxf6 {[%clk 0:02:55.8]} 9. e4 {[%clk 0:02:58.2]} 9... e6 {[%clk 0:02:45]}
10. O-O {[%clk 0:02:57.6]} 10... Nd7 {[%clk 0:02:44.2]} 11. Re1 {[%clk
0:02:56.9]} 11... c5 {[%clk 0:02:43.3]} 12. e5 {[%clk 0:02:56.4]} 12... Bg7
{[%clk 0:02:43.4]} 13. b4 {[%clk 0:02:53.6]} 13... c4 {[%clk 0:02:41.9]} 14. Bc2
{[%clk 0:02:53.5]} 14... b5 {[%clk 0:02:41.3]} 15. a4 {[%clk 0:02:53.3]} 15...
a5 {[%clk 0:02:36.4]} 16. Rb1 {[%clk 0:02:46.7]} 16... Bc6 {[%clk 0:02:30.9]}
17. bxa5 {[%clk 0:02:42.5]} 17... Qxa5 {[%clk 0:02:27.7]} 18. axb5 {[%clk
0:02:42.2]} 18... Bxb5 {[%clk 0:02:27.9]} 19. Nf1 {[%clk 0:02:38.2]} 19... Nb6
{[%clk 0:02:21.8]} 20. Qd2 {[%clk 0:02:31.1]} 20... Na4 {[%clk 0:02:17.5]} 21.
Rb4 {[%clk 0:02:25.4]} 21... Rfb8 {[%clk 0:01:28.5]} 22. Ra1 {[%clk 0:02:20]}
22... Bf8 {[%clk 0:01:23.2]} 23. Rbxa4 {[%clk 0:02:17.9]} 23... Bxa4 {[%clk
0:01:22.2]} 24. Rxa4 {[%clk 0:02:18.1]} 24... Qb5 {[%clk 0:01:18.4]} 25. Rxa8
{[%clk 0:02:14.7]} 25... Rxa8 {[%clk 0:01:18.5]} 26. h4 {[%clk 0:02:13.6]} 26...
Qb2 {[%clk 0:01:14.2]} 27. Ng5 {[%clk 0:01:56.8]} 27... Bh6 {[%clk 0:00:36.6]}
28. Ne3 {[%clk 0:01:54.9]} 28... Bxg5 {[%clk 0:00:34.7]} 29. hxg5 {[%clk
0:01:54.9]} 29... Ra3 {[%clk 0:00:29.6]} 30. Ng4 {[%clk 0:01:50.1]} 30... Qxc3
{[%clk 0:00:22.9]} 31. Qf4 {[%clk 0:01:47.9]} 31... Ra7 {[%clk 0:00:13.9]} 32.
Nh6+ {[%clk 0:01:39.5]} 32... Kf8 {[%clk 0:00:13.8]} 33. Qf6 {[%clk 0:01:38.1]}
33... Ke8 {[%clk 0:00:14.1]} 34. Qh8+ {[%clk 0:01:31]} 34... Kd7 {[%clk
0:00:13.2]} 35. Nxf7 {[%clk 0:01:28.4]} 35... Kc6 {[%clk 0:00:12.1]} 36. Ba4+
{[%clk 0:01:25.1]} 36... Kb6 {[%clk 0:00:11.5]} 37. Qb8+ {[%clk 0:01:24.6]}
37... Rb7 {[%clk 0:00:11.7]} 38. Qd6+ {[%clk 0:01:24.7]} 38... Ka5 {[%clk
0:00:12]} 39. Qc5+ {[%clk 0:01:16.4]} 39... Kxa4 {[%clk 0:00:11.6]} 40. Qc6+
{[%clk 0:01:17]} 40... Rb5 {[%clk 0:00:10.3]} 41. Nd6 {[%clk 0:01:16.1]} 41...
Qc1+ {[%clk 0:00:10.3]} 42. Kh2 {[%clk 0:01:15.8]} 42... Qb2 {[%clk 0:00:07.3]}
43. Qa6+ {[%clk 0:01:05.6]} 43... Ra5 {[%clk 0:00:06.9]} 44. Qc6+ {[%clk
0:01:05.6]} 44... Ka3 {[%clk 0:00:07.3]} 45. Nb7 {[%clk 0:01:03]} 45... Rb5
{[%clk 0:00:04.9]} 46. Qa6+ {[%clk 0:01:01.4]} 46... Kb4 {[%clk 0:00:05.2]} 47.
Nd6 {[%clk 0:00:59.5]} 47... Ra5 {[%clk 0:00:04.7]} 48. Qb6+ {[%clk 0:00:59.5]}
48... Ka4 {[%clk 0:00:05.1]} 49. Qc6+ {[%clk 0:00:59.3]} 49... Ka3 {[%clk
0:00:04.2]} 50. Nb7 {[%clk 0:00:58.5]} 50... Ra4 {[%clk 0:00:03.5]} 51. Nc5
{[%clk 0:00:57.5]} 51... Qb4 {[%clk 0:00:03.9]} 52. Qxe6 {[%clk 0:00:55.5]}
52... c3 {[%clk 0:00:04.3]} 53. Qxd5 {[%clk 0:00:48.6]} 53... c2 {[%clk
0:00:04.1]} 54. Nd3 {[%clk 0:00:46.9]} 54... Qb3 {[%clk 0:00:03]} 55. Qc5+
{[%clk 0:00:46.3]} 55... Ka2 {[%clk 0:00:03.4]} 56. Nc1+ {[%clk 0:00:46.6]}
56... Kb2 {[%clk 0:00:03.8]} 57. Nxb3 {[%clk 0:00:46.9]} 57... Kxb3 {[%clk
0:00:04.4]} 58. e6 {[%clk 0:00:45.2]} 58... Rc4 {[%clk 0:00:04.7]} 59. Qb5+
{[%clk 0:00:45.1]} 59... Kc3 {[%clk 0:00:04.7]} 60. Qxc4+ {[%clk 0:00:45.6]}
60... Kxc4 {[%clk 0:00:04.9]} 61. e7 {[%clk 0:00:46]} 61... c1=Q {[%clk
0:00:05.6]} 62. e8=Q {[%clk 0:00:46.3]} 62... Qf4+ {[%clk 0:00:06.1]} 63. Kg1
{[%clk 0:00:46.4]} 63... Qc1+ {[%clk 0:00:06]} 64. Kh2 {[%clk 0:00:46.9]} 64...
Qf4+ {[%clk 0:00:06.9]} 65. g3 {[%clk 0:00:47.4]} 65... Qxf2+ {[%clk 0:00:07]}
66. Kh3 {[%clk 0:00:47.9]} 66... Qf5+ {[%clk 0:00:07.2]} 67. Kh4 {[%clk
0:00:47.4]} 67... Kxd4 {[%clk 0:00:06.5]} 68. Qd8+ {[%clk 0:00:44.1]} 68... Ke3
{[%clk 0:00:06.3]} 69. Qb6+ {[%clk 0:00:42.2]} 69... Kf3 {[%clk 0:00:05.9]} 70.
Qb3+ {[%clk 0:00:41.7]} 70... Kf2 {[%clk 0:00:05.9]} 71. Qb2+ {[%clk 0:00:40.9]}
71... Ke3 {[%clk 0:00:06.1]} 72. Qc3+ {[%clk 0:00:40.8]} 72... Qd3 {[%clk
0:00:06.3]} 73. Qe1+ {[%clk 0:00:38.5]} 73... Kf3 {[%clk 0:00:06.6]} 74. Qh1+
{[%clk 0:00:37.6]} 74... Kf2 {[%clk 0:00:06.7]} 75. Qh2+ {[%clk 0:00:36.6]}
75... Ke3 {[%clk 0:00:07]} 76. Qg1+ {[%clk 0:00:37.1]} 76... Ke4 {[%clk
0:00:07.4]} 77. Qg2+ {[%clk 0:00:36.5]} 77... Ke5 {[%clk 0:00:07.6]} 78. g4
{[%clk 0:00:30.6]} 78... Qe3 {[%clk 0:00:05.2]} 79. Qh2+ {[%clk 0:00:29.7]}
79... Ke4 {[%clk 0:00:05]} 80. Qc2+ {[%clk 0:00:29.2]} 80... Kf3 {[%clk
0:00:05]} 81. Qc6+ {[%clk 0:00:27.5]} 81... Kf2 {[%clk 0:00:04.4]} 82. Qf6+
{[%clk 0:00:25]} 82... Kg2 {[%clk 0:00:03.8]} 83. Qf1+ {[%clk 0:00:17.6]} 83...
Kh2 {[%clk 0:00:02.9]} 84. Qh1+ {[%clk 0:00:16.6]} 84... Kxh1 {[%clk 0:00:03.2]}
1/2-1/2

[Event "*** Titled Tuesday Blitz"]
[Site "Chess.com"]
[Date "2020.10.20"]
[Round "10"]
[White "crazy_but_lazy"]
[Black "indfraeng"]
[Result "1/2-1/2"]
[WhiteElo "2457"]
[BlackElo "2358"]
[TimeControl "180+1"]
[EndTime "12:00:15 PDT"]
[Termination "Game drawn by stalemate"]

1. c4 {[%clk 0:03:00.9]} 1... c5 {[%clk 0:03:00]} 2. g3 {[%clk 0:03:00.4]} 2...
Nf6 {[%clk 0:03:00.1]} 3. Bg2 {[%clk 0:03:00.8]} 3... d5 {[%clk 0:03:00.7]} 4.
cxd5 {[%clk 0:03:00.9]} 4... Nxd5 {[%clk 0:03:01.6]} 5. Nc3 {[%clk 0:03:01.4]}
5... Nc7 {[%clk 0:03:01.3]} 6. d3 {[%clk 0:03:02]} 6... Nc6 {[%clk 0:03:00.1]}
7. Be3 {[%clk 0:03:02.5]} 7... e5 {[%clk 0:02:59.8]} 8. Bxc6+ {[%clk 0:03:02.3]}
8... bxc6 {[%clk 0:02:59.7]} 9. Qa4 {[%clk 0:03:02.6]} 9... Bd7 {[%clk
0:02:53.9]} 10. Nf3 {[%clk 0:03:00.4]} 10... f6 {[%clk 0:02:52]} 11. Ne4 {[%clk
0:02:55.7]} 11... Ne6 {[%clk 0:02:50.5]} 12. Rc1 {[%clk 0:02:54.1]} 12... Qb6
{[%clk 0:02:48.4]} 13. O-O {[%clk 0:02:47.6]} 13... Be7 {[%clk 0:02:45.8]} 14.
Nfd2 {[%clk 0:02:45.4]} 14... O-O {[%clk 0:02:40.3]} 15. Nc4 {[%clk 0:02:45.2]}
15... Qb4 {[%clk 0:02:39.4]} 16. Qc2 {[%clk 0:02:16.4]} 16... Nd4 {[%clk
0:02:29.6]} 17. Qd1 {[%clk 0:02:10.9]} 17... Bg4 {[%clk 0:02:18.5]} 18. f3
{[%clk 0:02:09.4]} 18... Be6 {[%clk 0:02:18.1]} 19. Bd2 {[%clk 0:02:09]} 19...
Qb5 {[%clk 0:02:15.7]} 20. e3 {[%clk 0:02:05.5]} 20... Nf5 {[%clk 0:02:10]} 21.
b3 {[%clk 0:01:56.8]} 21... Rfd8 {[%clk 0:02:06.5]} 22. Qe2 {[%clk 0:01:56.8]}
22... Rab8 {[%clk 0:02:04.4]} 23. Rc2 {[%clk 0:01:48.8]} 23... Nd6 {[%clk
0:02:00.8]} 24. Rd1 {[%clk 0:01:26.3]} 24... Nxe4 {[%clk 0:01:58.2]} 25. dxe4
{[%clk 0:01:23.5]} 25... Rd7 {[%clk 0:01:41.8]} 26. Be1 {[%clk 0:00:59.7]} 26...
Rbd8 {[%clk 0:01:36.9]} 27. Rxd7 {[%clk 0:00:59.6]} 27... Rxd7 {[%clk
0:01:37.8]} 28. Kf2 {[%clk 0:00:59.3]} 28... h5 {[%clk 0:01:31.9]} 29. h4 {[%clk
0:00:58.3]} 29... Bd8 {[%clk 0:01:25.8]} 30. Bc3 {[%clk 0:00:49.1]} 30... a5
{[%clk 0:01:21]} 31. Rd2 {[%clk 0:00:46.1]} 31... Bc7 {[%clk 0:00:35.3]} 32.
Rxd7 {[%clk 0:00:43.9]} 32... Bxd7 {[%clk 0:00:36.2]} 33. Qd2 {[%clk 0:00:44]}
33... Be6 {[%clk 0:00:35.5]} 34. Nxa5 {[%clk 0:00:35.9]} 34... Bxa5 {[%clk
0:00:29.2]} 35. Bxa5 {[%clk 0:00:35.8]} 35... c4 {[%clk 0:00:29.7]} 36. bxc4
{[%clk 0:00:23.2]} 36... Qxc4 {[%clk 0:00:30.6]} 37. a3 {[%clk 0:00:21.3]} 37...
Qa2 {[%clk 0:00:25.1]} 38. Qxa2 {[%clk 0:00:16.5]} 38... Bxa2 {[%clk 0:00:26]}
39. Bb4 {[%clk 0:00:17.2]} 39... Kf7 {[%clk 0:00:23.6]} 40. a4 {[%clk
0:00:16.3]} 40... Bc4 {[%clk 0:00:21.8]} 41. a5 {[%clk 0:00:16.6]} 41... g6
{[%clk 0:00:20.9]} 42. g4 {[%clk 0:00:15.4]} 42... hxg4 {[%clk 0:00:20.4]} 43.
fxg4 {[%clk 0:00:16.2]} 43... Bd3 {[%clk 0:00:20.5]} 44. Bc5 {[%clk 0:00:15.6]}
44... Ke6 {[%clk 0:00:14.8]} 45. Kg3 {[%clk 0:00:12]} 45... Ba6 {[%clk
0:00:12.4]} 46. h5 {[%clk 0:00:11]} 46... gxh5 {[%clk 0:00:12.8]} 47. gxh5
{[%clk 0:00:11.9]} 47... Kf7 {[%clk 0:00:13.4]} 48. Kh4 {[%clk 0:00:07.8]} 48...
Bc8 {[%clk 0:00:13.2]} 49. Kg3 {[%clk 0:00:02.5]} 49... Ba6 {[%clk 0:00:11.5]}
50. Kh4 {[%clk 0:00:03.2]} 50... Bc8 {[%clk 0:00:11.6]} 51. Bd6 {[%clk
0:00:03.7]} 51... Ke6 {[%clk 0:00:09.7]} 52. h6 {[%clk 0:00:03.8]} 52... Kf7
{[%clk 0:00:09.1]} 53. Be7 {[%clk 0:00:03.8]} 53... Kg6 {[%clk 0:00:07.9]} 54.
h7 {[%clk 0:00:03]} 54... Kxh7 {[%clk 0:00:05.2]} 55. Bxf6 {[%clk 0:00:03.6]}
55... c5 {[%clk 0:00:05.7]} 56. Bxe5 {[%clk 0:00:04.3]} 56... Bb7 {[%clk
0:00:06.3]} 57. Bd6 {[%clk 0:00:04]} 57... c4 {[%clk 0:00:06.1]} 58. Bb4 {[%clk
0:00:03.1]} 58... Bxe4 {[%clk 0:00:05.7]} 59. Kg5 {[%clk 0:00:03.8]} 59... Kg7
{[%clk 0:00:05.9]} 60. Kf4 {[%clk 0:00:04.4]} 60... Bc6 {[%clk 0:00:05.5]} 61.
Ke5 {[%clk 0:00:05.3]} 61... Kf7 {[%clk 0:00:04.9]} 62. Kd6 {[%clk 0:00:05.7]}
62... Be4 {[%clk 0:00:04.7]} 63. Kc5 {[%clk 0:00:05.3]} 63... Ke7 {[%clk
0:00:04.7]} 64. Kxc4+ {[%clk 0:00:05.6]} 64... Kd7 {[%clk 0:00:04.9]} 65. Kd4
{[%clk 0:00:04.6]} 65... Bh1 {[%clk 0:00:03.8]} 66. a6 {[%clk 0:00:03.3]} 66...
Kc6 {[%clk 0:00:03]} 67. Bc5 {[%clk 0:00:03.4]} 67... Kc7 {[%clk 0:00:02.5]} 68.
a7 {[%clk 0:00:03.3]} 68... Kb7 {[%clk 0:00:02.7]} 69. Ke5 {[%clk 0:00:03.7]}
69... Bg2 {[%clk 0:00:02.5]} 70. Kd6 {[%clk 0:00:04.1]} 70... Ka8 {[%clk
0:00:03]} 71. Kc7 {[%clk 0:00:04.2]} 71... Be4 {[%clk 0:00:03.1]} 72. Kb6 {[%clk
0:00:03.2]} 72... Bh1 {[%clk 0:00:03.6]} 73. Bd6 {[%clk 0:00:03.7]} 73... Bg2
{[%clk 0:00:04.1]} 74. Bb8 {[%clk 0:00:01.8]} 74... Be4 {[%clk 0:00:04.9]} 75.
Kc5 {[%clk 0:00:02.4]} 75... Bg2 {[%clk 0:00:05.3]} 76. Kd4 {[%clk 0:00:03]}
76... Bh1 {[%clk 0:00:05.5]} 77. e4 {[%clk 0:00:03.6]} 77... Bxe4 {[%clk
0:00:05.7]} 78. Kxe4 {[%clk 0:00:04.1]} 78... Kb7 {[%clk 0:00:06.3]} 79. Kd5
{[%clk 0:00:04.4]} 79... Ka8 {[%clk 0:00:07.2]} 80. Kd6 {[%clk 0:00:04.9]} 80...
Kb7 {[%clk 0:00:08.1]} 81. Kd7 {[%clk 0:00:05.4]} 81... Ka8 {[%clk 0:00:09]} 82.
Bf4 {[%clk 0:00:05.5]} 82... Kb7 {[%clk 0:00:09.9]} 83. Be3 {[%clk 0:00:06.2]}
83... Ka8 {[%clk 0:00:10]} 84. Kd6 {[%clk 0:00:06.8]} 84... Kb7 {[%clk
0:00:10.4]} 85. Kd5 {[%clk 0:00:07.3]} 85... Ka8 {[%clk 0:00:10.8]} 86. Kc4
{[%clk 0:00:08.2]} 86... Kb7 {[%clk 0:00:11.4]} 87. Kb5 {[%clk 0:00:09.1]} 87...
Ka8 {[%clk 0:00:11.9]} 88. Ka6 {[%clk 0:00:09.7]} 1/2-1/2

[Event "*** Titled Tuesday Blitz"]
[Site "Chess.com"]
[Date "2020.10.20"]
[Round "10"]
[White "zverr1"]
[Black "ambaixador"]
[Result "0-1"]
[WhiteElo "2402"]
[BlackElo "2322"]
[TimeControl "180+1"]
[EndTime "12:00:15 PDT"]
[Termination "ambaixador won on time"]

1. e4 {[%clk 0:03:00.9]} 1... c6 {[%clk 0:02:58.9]} 2. d4 {[%clk 0:02:56.4]}
2... d5 {[%clk 0:02:59.8]} 3. exd5 {[%clk 0:02:57.1]} 3... cxd5 {[%clk
0:02:59.7]} 4. c4 {[%clk 0:02:57.8]} 4... e6 {[%clk 0:02:58.8]} 5. Nc3 {[%clk
0:02:56.1]} 5... Nf6 {[%clk 0:02:58.5]} 6. Nf3 {[%clk 0:02:55.5]} 6... Be7
{[%clk 0:02:58.1]} 7. Bd3 {[%clk 0:02:49.2]} 7... dxc4 {[%clk 0:02:57.2]} 8.
Bxc4 {[%clk 0:02:50.1]} 8... O-O {[%clk 0:02:57.4]} 9. O-O {[%clk 0:02:48.7]}
9... a6 {[%clk 0:02:57.7]} 10. a4 {[%clk 0:02:47.8]} 10... Nbd7 {[%clk
0:02:57.6]} 11. Qe2 {[%clk 0:02:47.3]} 11... Nb6 {[%clk 0:02:57.8]} 12. Bb3
{[%clk 0:02:46.3]} 12... Bd7 {[%clk 0:02:58]} 13. Bg5 {[%clk 0:02:38]} 13... Bc6
{[%clk 0:02:53.3]} 14. Rad1 {[%clk 0:02:26.6]} 14... Bxf3 {[%clk 0:02:32.5]} 15.
Qxf3 {[%clk 0:02:26.1]} 15... Nfd5 {[%clk 0:02:24.2]} 16. Bxe7 {[%clk
0:01:56.5]} 16... Qxe7 {[%clk 0:02:14.7]} 17. Nxd5 {[%clk 0:01:46.6]} 17... Nxd5
{[%clk 0:02:15.6]} 18. Bxd5 {[%clk 0:01:40.8]} 18... exd5 {[%clk 0:02:16.5]} 19.
Qxd5 {[%clk 0:01:41]} 19... Qb4 {[%clk 0:02:16.5]} 20. Qa2 {[%clk 0:01:33.7]}
20... Rfd8 {[%clk 0:02:12.5]} 21. d5 {[%clk 0:01:32.3]} 21... Rd6 {[%clk
0:02:11.2]} 22. Rd3 {[%clk 0:01:26.8]} 22... Rad8 {[%clk 0:02:11.1]} 23. Rfd1
{[%clk 0:01:26.4]} 23... h6 {[%clk 0:02:00.7]} 24. Rd4 {[%clk 0:01:24.1]} 24...
Qc5 {[%clk 0:01:50.9]} 25. Qb3 {[%clk 0:01:22.3]} 25... b5 {[%clk 0:01:41.9]}
26. axb5 {[%clk 0:01:22]} 26... axb5 {[%clk 0:01:42.8]} 27. h4 {[%clk
0:01:21.4]} 27... Rf6 {[%clk 0:01:31.2]} 28. Qd3 {[%clk 0:01:09.9]} 28... Rdd6
{[%clk 0:01:25.2]} 29. Qe3 {[%clk 0:01:06.4]} 29... Qc8 {[%clk 0:01:15.2]} 30.
Re4 {[%clk 0:01:03.7]} 30... Kh7 {[%clk 0:01:07.9]} 31. h5 {[%clk 0:01:00.7]}
31... Qf5 {[%clk 0:01:06.2]} 32. Re5 {[%clk 0:01:00.7]} 32... Qc2 {[%clk
0:00:55.1]} 33. Qd3+ {[%clk 0:00:54.7]} 33... Qxd3 {[%clk 0:00:54]} 34. Rxd3
{[%clk 0:00:55.6]} 34... Rf4 {[%clk 0:00:51.9]} 35. Rb3 {[%clk 0:00:50.1]} 35...
b4 {[%clk 0:00:49.7]} 36. g3 {[%clk 0:00:48.5]} 36... Rd4 {[%clk 0:00:48.6]} 37.
Re7 {[%clk 0:00:43.9]} 37... R6xd5 {[%clk 0:00:39.5]} 38. Rxf7 {[%clk
0:00:40.8]} 38... Rxh5 {[%clk 0:00:39.6]} 39. Rb7 {[%clk 0:00:39.8]} 39... Rf5
{[%clk 0:00:30.8]} 40. R3xb4 {[%clk 0:00:23.8]} 40... Rd2 {[%clk 0:00:24.9]} 41.
Rf4 {[%clk 0:00:20.2]} 41... Rxf4 {[%clk 0:00:24.4]} 42. gxf4 {[%clk 0:00:21.1]}
42... Rd4 {[%clk 0:00:22.1]} 43. f5 {[%clk 0:00:21]} 43... Rf4 {[%clk
0:00:22.1]} 44. Rb5 {[%clk 0:00:20.6]} 44... Kg8 {[%clk 0:00:22.1]} 45. Kg2
{[%clk 0:00:21]} 45... Kf7 {[%clk 0:00:22.3]} 46. Kg3 {[%clk 0:00:21.5]} 46...
Rc4 {[%clk 0:00:22]} 47. f4 {[%clk 0:00:18.3]} 47... Kf6 {[%clk 0:00:19.6]} 48.
Kg4 {[%clk 0:00:18.4]} 48... Rc2 {[%clk 0:00:19.1]} 49. Rb6+ {[%clk 0:00:18.2]}
49... Kf7 {[%clk 0:00:19.5]} 50. b4 {[%clk 0:00:17]} 50... Rg2+ {[%clk
0:00:16.5]} 51. Kf3 {[%clk 0:00:17.4]} 51... Rb2 {[%clk 0:00:16.5]} 52. Ke4
{[%clk 0:00:16.7]} 52... Rb1 {[%clk 0:00:15.7]} 53. b5 {[%clk 0:00:15.8]} 53...
Re1+ {[%clk 0:00:15.3]} 54. Kd5 {[%clk 0:00:15.8]} 54... Rd1+ {[%clk 0:00:15.1]}
55. Ke5 {[%clk 0:00:15.2]} 55... Re1+ {[%clk 0:00:14.7]} 56. Kd4 {[%clk
0:00:15.7]} 56... Rf1 {[%clk 0:00:14.3]} 57. Ke3 {[%clk 0:00:15]} 57... Re1+
{[%clk 0:00:14.3]} 58. Kf2 {[%clk 0:00:15.4]} 58... Rb1 {[%clk 0:00:14.1]} 59.
Ke3 {[%clk 0:00:14.1]} 59... Re1+ {[%clk 0:00:13.8]} 60. Kd4 {[%clk 0:00:14.7]}
60... Rf1 {[%clk 0:00:13.8]} 61. Ke5 {[%clk 0:00:13.6]} 61... Re1+ {[%clk
0:00:14]} 62. Kd5 {[%clk 0:00:13]} 62... Rf1 {[%clk 0:00:13.9]} 63. Re6 {[%clk
0:00:06.8]} 63... Rxf4 {[%clk 0:00:12.8]} 64. Ke5 {[%clk 0:00:07.2]} 64... Rb4
{[%clk 0:00:12.4]} 65. b6 {[%clk 0:00:07.8]} 65... Rb5+ {[%clk 0:00:09]} 66. Ke4
{[%clk 0:00:04.7]} 66... Rb4+ {[%clk 0:00:08.8]} 67. Kd5 {[%clk 0:00:04.1]}
67... Rb1 {[%clk 0:00:07.8]} 68. Kc6 {[%clk 0:00:02.9]} 68... h5 {[%clk
0:00:07.9]} 69. b7 {[%clk 0:00:03]} 69... h4 {[%clk 0:00:06.5]} 70. Re4 {[%clk
0:00:02.7]} 70... h3 {[%clk 0:00:06.3]} 71. Rh4 {[%clk 0:00:03]} 71... Rb3
{[%clk 0:00:06.3]} 72. Rxh3 {[%clk 0:00:02.6]} 72... Rxh3 {[%clk 0:00:07.2]} 73.
b8=Q {[%clk 0:00:02.4]} 73... Rh6+ {[%clk 0:00:07.4]} 74. Kd5 {[%clk 0:00:02.4]}
74... Rf6 {[%clk 0:00:07.7]} 75. Ke5 {[%clk 0:00:02.2]} 75... Ke7 {[%clk
0:00:05.9]} 76. Qh8 {[%clk 0:00:02.2]} 76... Kf7 {[%clk 0:00:05.7]} 77. Qh5+
{[%clk 0:00:02.7]} 77... Kg8 {[%clk 0:00:05.4]} 0-1